fUSD/lending_fUSD_20251223
["ID","MTS","AMOUNT","RATE_DAILY","PERIOD"]
[399564043,1766487612448,-500.0,0.00047945,120]
[399564044,1766487612506,-557.62,0.00047945,120]
[399564045,1766487612563,-526.92,0.00047945,120]
[399564046,1766487612619,-1297.54,0.00047945,120]
[399564047,1766487612677,-555.83,0.00047945,120]
[399564048,1766487612732,-457.5,0.00047945,120]
[399564049,1766487612786,-604.78,0.00047945,120]
[399564050,1766487612845,-873.07,0.00047945,120]
[399564051,1766487612901,-2639.11,0.00047945,120]
[399564052,1766487612956,-600.1,0.00047945,120]
[399564053,1766487613013,-500.0,0.00047945,120]
[399564054,1766487613069,-622.5,0.00047945,120]
[399564055,1766487613125,-500.0,0.00047945,120]
[399564056,1766487613181,-500.0,0.00047945,120]
[399564057,1766487613240,-567.72,0.00047945,120]
[399564058,1766487613295,-2830.44,0.00047945,120]
[399564059,1766487613354,-500.0,0.00047945,120]
[399564060,1766487613408,-711.79,0.00047945,120]
[399564061,1766487613468,-592.25,0.00047945,120]
[399564062,1766487613522,-500.0,0.00047945,120]
[399564063,1766487613577,-619.91,0.00047945,120]
[399564064,1766487613632,-500.0,0.00047945,120]
[399564065,1766487613688,-500.0,0.00047945,60]
[399564066,1766487613744,-865.33,0.00047945,120]
[399564067,1766487613801,-580.69,0.00047945,120]
[399564068,1766487613856,-500.0,0.00047945,120]
[399564069,1766487613910,-865.61,0.00047945,120]
[399564070,1766487613965,-500.0,0.00047945,120]
[399564071,1766487614021,-1432.6,0.00047945,120]
[399564072,1766487614077,-500.0,0.00047945,120]
[399564073,1766487614133,-893.55,0.00047945,120]
[399564074,1766487614194,-500.0,0.00047945,120]
[399564075,1766487614251,-1688.71,0.00047945,120]
[399564076,1766487614310,-905.29,0.00047945,120]
[399564077,1766487614365,-632.22,0.00047945,120]
[399564078,1766487614421,-592.93,0.00047945,120]
[399564079,1766487614476,-519.34,0.00047945,120]
[399564080,1766487614532,-1835.93,0.00047945,120]
[399564081,1766487614587,-697.2,0.00047945,120]
[399564082,1766487614649,-878.66,0.00047945,120]
[399564083,1766487614710,-500.0,0.00047945,120]
[399564084,1766487614765,-152.98203003,0.00047945,120]
[399564085,1766487614820,-913.04,0.00047945,120]
[399564086,1766487614875,-751.1,0.00047945,120]
[399564087,1766487614930,-500.0,0.00047945,120]
[399564088,1766487615433,-1075.62,0.00047945,60]
[399564089,1766487615493,-500.0,0.00047945,120]
[399564090,1766487615548,-184.14108623,0.00047945,120]
[399564091,1766487615602,-1328.41,0.00047945,120]
[399564092,1766487615656,-500.0,0.00047945,120]
[399564093,1766487615709,-500.0,0.00047945,120]
[399564094,1766487615762,-599.0,0.00047945,120]
[399564095,1766487615814,-886.86,0.00047945,120]
[399564096,1766487615869,-500.0,0.00047945,120]
[399564097,1766487615926,-418.09598396,0.00047945,120]
[399564098,1766487615982,-560.74,0.00047945,120]
[399564099,1766487616035,-1433.05,0.00047945,120]
[399564100,1766487616090,-500.0,0.00047945,120]
[399564101,1766487616147,-2265.89,0.00047945,120]
[399564102,1766487616205,-2082.47,0.00047945,120]
[399564103,1766487616262,-1141.51,0.00047945,120]
[399564104,1766487616319,-1850.23,0.00047945,120]
[399564105,1766487616380,-1211.32,0.00047945,120]
[399564106,1766487616436,-1291.8,0.00047945,120]
[399564107,1766487616493,-819.42,0.00047945,120]
[399564108,1766487616548,-2579.35,0.00047945,120]
[399564109,1766487616603,-500.0,0.00047945,120]
[399564110,1766487616657,-1083.91,0.00047945,120]
[399564111,1766487616710,-2453.97,0.00047945,120]
[399564112,1766487616765,-1697.27,0.00047945,120]
[399564113,1766487616819,-1279.54,0.00047945,120]
[399564114,1766487616873,-500.0,0.00047945,120]
[399564115,1766487616927,-730.24,0.00047945,120]
[399564116,1766487616982,-500.0,0.00047945,120]
[399564117,1766487617037,-751.57,0.00047945,120]
[399564118,1766487617091,-1053.31,0.00047945,120]
[399564119,1766487617145,-516.65,0.00047945,120]
[399564120,1766487617201,-500.0,0.00047945,120]
[399564121,1766487617256,-847.16,0.00047945,120]
[399564122,1766487617312,-1188.06,0.00047945,120]
[399564123,1766487617368,-500.0,0.00047945,120]
[399564124,1766487617424,-626.28,0.00047945,120]
[399564125,1766487617481,-500.0,0.00047945,120]
[399564126,1766487617537,-1482.2,0.00047945,120]
[399564127,1766487617593,-570.04,0.00047945,120]
[399564128,1766487617647,-612.78,0.00047945,120]
[399564129,1766487617703,-500.0,0.00047945,120]
[399564130,1766487617758,-1932.35,0.00047945,120]
[399564131,1766487617813,-1255.16,0.00047945,120]
[399564132,1766487617867,-1678.76,0.00047945,120]
[399564133,1766487617922,-1569.44,0.00047945,120]
[399564134,1766487617977,-1870.13,0.00047945,120]
[399564135,1766487618036,-500.0,0.00047945,120]
[399564136,1766487618093,-500.0,0.00047945,120]
[399564137,1766487618148,-593.04556434,0.00047945,120]
[399564138,1766487618209,-500.0,0.00047945,120]
[399564139,1766487618279,-2182.76,0.00047945,120]
[399564140,1766487618343,-594.81383021,0.00047945,120]
[399564141,1766487618406,-1062.94,0.00047945,120]
[399564142,1766487618460,-500.0,0.00047945,120]
[399564143,1766487618513,-500.0,0.00047945,120]
[399564144,1766487618566,-503.44,0.00047945,120]
[399564145,1766487618618,-595.91,0.00047945,120]
[399564146,1766487618670,-811.74,0.00047945,120]
[399564147,1766487618723,-650.99,0.00047945,120]
[399564148,1766487618778,-500.0,0.00047945,120]
[399564149,1766487618833,-1388.3,0.00047945,120]
[399564150,1766487618890,-500.0,0.00047945,120]
[399564151,1766487618943,-500.0,0.00047945,120]
[399564152,1766487618998,-1432.96,0.00047945,120]
[399564153,1766487619052,-689.37,0.00047945,120]
[399564154,1766487619199,-1562.05,0.00047945,120]
[399564155,1766487619253,-1196.29,0.00047945,120]
[399564156,1766487619309,-1708.74,0.00047945,120]
[399564157,1766487619363,-500.0,0.00047945,120]
[399564158,1766487619415,-1298.55,0.00047945,120]
[399564159,1766487619464,-1689.23,0.00047945,120]
[399564160,1766487619517,-1005.64,0.00047945,120]
[399564161,1766487619574,-10397.11,0.00047945,120]
[399564162,1766487619622,-765.9,0.00047945,120]
[399564163,1766487619674,-1000.0,0.00047999,120]
[399564164,1766487619722,-1000.0,0.00048,120]
[399564165,1766487619768,-10000.0,0.00048,120]
[399564166,1766487619812,-1184.67020073,0.00048,120]
[399564167,1766487619860,-1779.59969985,0.00048,120]
[399564168,1766487619905,-602.08492207,0.00048,120]
[399564169,1766487619949,-2255.82337268,0.00048,120]
[399564170,1766487619996,-694.1464877,0.00048,120]
[399564171,1766487620046,-1276.17659174,0.00048,120]
[399564172,1766487620097,-150.0,0.00048,120]
[399564173,1766487620147,-1141.95139139,0.00048,120]
[399564174,1766487620199,-2666.0,0.00048,120]
[399564175,1766487620255,-200.0,0.00048,120]
[399564176,1766487620308,-170.0,0.00048,120]
[399564177,1766487620360,-1278.52898958,0.00048,120]
[399564178,1766487620414,-219.01813271,0.00048047,120]
[399564179,1766487620467,-219.35993331,0.00048047,120]
[399564180,1766487620522,-2724.73,0.00048162,120]
[399564181,1766487620574,-157.0,0.000482,120]
[399564182,1766487620626,-917.06,0.00048219,120]
[399564183,1766487620679,-500.0,0.00048219,120]
[399564184,1766487620729,-1369.07,0.00048219,120]
[399564185,1766487620779,-500.0,0.00048219,120]
[399564186,1766487620830,-500.0,0.00048219,120]
[399564187,1766487620881,-756.38,0.00048219,120]
[399564188,1766487620931,-500.0,0.00048219,120]
[399564189,1766487620982,-500.0,0.00048219,120]
[399564190,1766487621034,-455.25295156,0.00048219,120]
[399564191,1766487621086,-1039.08,0.00048219,120]
[399564192,1766487621140,-2118.86,0.00048219,120]
[399564193,1766487621198,-2017.38,0.00048219,120]
[399564194,1766487621257,-500.0,0.00048219,120]
[399564195,1766487621313,-1042.93,0.00048219,120]
[399564196,1766487621369,-500.0,0.00048219,120]
[399564197,1766487621424,-500.0,0.00048219,120]
[399564198,1766487621481,-500.0,0.00048219,120]
[399564199,1766487621535,-500.0,0.00048219,120]
[399564200,1766487621590,-500.0,0.00048219,120]
[399564201,1766487621641,-500.0,0.00048219,120]
[399564202,1766487621693,-1059.91,0.00048219,120]
[399564203,1766487621745,-582.18,0.00048219,120]
[399564204,1766487621795,-514.4,0.00048219,120]
[399564205,1766487621845,-500.0,0.00048219,120]
[399564206,1766487621896,-500.0,0.00048219,120]
[399564207,1766487621946,-500.0,0.00048219,120]
[399564208,1766487621999,-500.0,0.00048219,120]
[399564209,1766487622054,-500.0,0.00048219,120]
[399564210,1766487622110,-1956.07,0.00048219,120]
[399564211,1766487622167,-2752.43,0.00048219,120]
[399564212,1766487622227,-1842.03,0.00048219,120]
[399564213,1766487622284,-500.0,0.00048219,120]
[399564214,1766487622340,-357.13762643,0.00048219,120]
[399564215,1766487622396,-500.0,0.00048219,120]
[399564216,1766487622453,-586.34,0.00048219,120]
[399564217,1766487622510,-500.0,0.00048219,120]
[399564218,1766487622568,-500.0,0.00048219,120]
[399564219,1766487622624,-500.0,0.00048219,120]
[399564220,1766487622682,-697.63,0.00048219,120]
[399564221,1766487622736,-500.0,0.00048219,120]
[399564222,1766487622790,-500.0,0.00048219,120]
[399564223,1766487622843,-982.85,0.00048219,120]
[399564224,1766487622895,-500.0,0.00048219,120]
[399564225,1766487622948,-500.0,0.00048219,120]
[399564226,1766487623001,-715.76,0.00048219,120]
[399564227,1766487623055,-172.14365647,0.00048219,120]
[399564228,1766487623112,-500.0,0.00048219,120]
[399564229,1766487623180,-1723.75,0.00048219,120]
[399564230,1766487623245,-524.92,0.00048219,120]
[399564231,1766487623301,-906.89,0.00048219,60]
[399564232,1766487623362,-545.88,0.00048219,120]
[399564233,1766487623419,-500.0,0.00048219,120]
[399564234,1766487623473,-1273.67,0.00048219,120]
[399564235,1766487623526,-500.0,0.00048219,120]
[399564236,1766487623579,-500.0,0.00048219,120]
[399564237,1766487623632,-616.17,0.00048219,120]
[399564238,1766487623682,-779.23,0.00048219,120]
[399564239,1766487623735,-760.79,0.00048219,120]
[399564240,1766487623786,-1543.48,0.00048219,120]
[399564241,1766487623837,-680.4,0.00048219,120]
[399564242,1766487623888,-440.81127614,0.00048219,120]
[399564243,1766487623940,-1112.14,0.00048219,120]
[399564244,1766487623992,-705.5,0.00048219,120]
[399564245,1766487624046,-500.0,0.00048219,120]
[399564246,1766487624100,-500.0,0.00048219,120]
[399564247,1766487624153,-1242.77,0.00048219,120]
[399564248,1766487624209,-500.0,0.00048219,120]
[399564249,1766487624398,-500.0,0.00048219,120]
[399564250,1766487624453,-500.0,0.00048219,120]
[399564251,1766487624508,-636.03,0.00048219,120]
[399564252,1766487624560,-1402.13,0.00048219,120]
[399564253,1766487624620,-500.0,0.00048219,120]
[399564254,1766487624677,-269.24989851,0.00048219,120]
[399564255,1766487624727,-1997.32,0.00048219,120]
[399564256,1766487624777,-1364.75,0.00048219,60]
[399564257,1766487624830,-766.62,0.00048219,120]
[399564258,1766487624880,-839.95,0.00048219,120]
[399564259,1766487624928,-500.0,0.00048219,120]
[399564260,1766487624978,-522.41,0.00048219,120]
[399564261,1766487625028,-500.0,0.00048219,120]
[399564262,1766487625075,-500.0,0.00048219,120]
[399564263,1766487625124,-642.74,0.00048219,120]
[399564264,1766487625175,-500.0,0.00048219,120]
[399564265,1766487625232,-506.09501261,0.00048219,120]
[399564266,1766487625285,-307.02192721,0.00048219,120]
[399564267,1766487625338,-500.0,0.00048219,120]
[399564268,1766487625402,-1016.98,0.00048219,120]
[399564269,1766487625461,-566.15,0.00048219,120]
[399564270,1766487625518,-567.85,0.00048219,120]
[399564271,1766487625573,-1710.74,0.00048219,120]
[399564272,1766487625632,-1210.55,0.00048219,120]
[399564273,1766487625684,-500.0,0.00048219,120]
[399564274,1766487625737,-1312.95,0.00048219,120]
[399564275,1766487625788,-1224.52,0.00048219,120]
[399564276,1766487625837,-1696.75,0.00048219,120]
[399564277,1766487625886,-500.0,0.00048219,120]
[399564278,1766487625933,-557.62,0.00048219,120]
[399564279,1766487625981,-526.92,0.00048219,120]
[399564280,1766487626032,-1297.54,0.00048219,120]
[399564281,1766487626086,-555.83,0.00048219,120]
[399564282,1766487626138,-604.78,0.00048219,120]
[399564283,1766487626198,-873.07,0.00048219,120]
[399564284,1766487626258,-2639.11,0.00048219,120]
[399564285,1766487626314,-600.1,0.00048219,120]
[399564286,1766487626368,-500.0,0.00048219,120]
[399564287,1766487626422,-622.5,0.00048219,120]
[399564288,1766487626476,-500.0,0.00048219,120]
[399564289,1766487626529,-500.0,0.00048219,120]
[399564290,1766487626583,-567.72,0.00048219,120]
[399564291,1766487626634,-2830.44,0.00048219,120]
[399564292,1766487626685,-500.0,0.00048219,120]
[399564293,1766487626735,-711.79,0.00048219,120]
[399564294,1766487626785,-592.25,0.00048219,120]
[399564295,1766487626833,-500.0,0.00048219,120]
[399564296,1766487626880,-619.91,0.00048219,120]
[399564297,1766487626928,-500.0,0.00048219,120]
[399564298,1766487626976,-500.0,0.00048219,60]
[399564299,1766487627027,-865.33,0.00048219,120]
[399564300,1766487627079,-580.69,0.00048219,120]
[399564301,1766487627131,-500.0,0.00048219,120]
[399564302,1766487627182,-865.61,0.00048219,120]
[399564303,1766487627242,-500.0,0.00048219,120]
[399564304,1766487627298,-1432.6,0.00048219,120]
[399564305,1766487627351,-500.0,0.00048219,120]
[399564306,1766487627403,-893.55,0.00048219,120]
[399564307,1766487627456,-500.0,0.00048219,120]
[399564308,1766487627507,-1688.71,0.00048219,120]
[399564309,1766487627556,-905.29,0.00048219,120]
[399564310,1766487627605,-632.22,0.00048219,120]
[399564311,1766487627654,-592.93,0.00048219,120]
[399564312,1766487627705,-519.34,0.00048219,120]
[399564313,1766487627757,-1835.93,0.00048219,120]
[399564314,1766487627808,-697.2,0.00048219,120]
[399564315,1766487627860,-878.66,0.00048219,120]
[399564316,1766487627911,-500.0,0.00048219,120]
[399564317,1766487627961,-913.04,0.00048219,120]
[399564318,1766487628013,-751.1,0.00048219,120]
[399564319,1766487628064,-500.0,0.00048219,120]
[399564320,1766487628113,-1075.62,0.00048219,60]
[399564321,1766487628165,-500.0,0.00048219,120]
[399564322,1766487628216,-1328.41,0.00048219,120]
[399564323,1766487628271,-500.0,0.00048219,120]
[399564324,1766487628322,-500.0,0.00048219,120]
[399564325,1766487628374,-599.0,0.00048219,120]
[399564326,1766487628426,-886.86,0.00048219,120]
[399564327,1766487628479,-500.0,0.00048219,120]
[399564328,1766487628530,-560.74,0.00048219,120]
[399564329,1766487628581,-1433.05,0.00048219,120]
[399564330,1766487628630,-500.0,0.00048219,120]
[399564331,1766487628676,-2265.89,0.00048219,120]
[399564332,1766487628721,-2082.47,0.00048219,120]
[399564333,1766487629035,-1141.51,0.00048219,120]
[399564334,1766487629090,-1850.23,0.00048219,120]
[399564335,1766487629140,-1211.32,0.00048219,120]
[399564336,1766487629191,-1291.8,0.00048219,120]
[399564337,1766487629242,-819.42,0.00048219,120]
[399564338,1766487629292,-2579.35,0.00048219,120]
[399564339,1766487629338,-500.0,0.00048219,120]
[399564340,1766487629383,-1083.91,0.00048219,120]
[399564341,1766487629428,-2453.97,0.00048219,120]
[399564342,1766487629475,-1697.27,0.00048219,120]
[399564343,1766487629521,-1279.54,0.00048219,120]
[399564344,1766487629568,-500.0,0.00048219,120]
[399564345,1766487629612,-730.24,0.00048219,120]
[399564346,1766487629657,-544.12605026,0.00048219,120]
[399564347,1766487629702,-751.57,0.00048219,120]
[399564348,1766487629745,-1053.31,0.00048219,120]
[399564349,1766487629789,-516.65,0.00048219,120]
[399564350,1766487629832,-500.0,0.00048219,120]
[399564351,1766487629879,-847.16,0.00048219,120]
[399564352,1766487629926,-1188.06,0.00048219,120]
[399564353,1766487629971,-500.0,0.00048219,120]
[399564354,1766487630018,-626.28,0.00048219,120]
[399564355,1766487630067,-500.0,0.00048219,120]
[399564356,1766487630117,-1482.2,0.00048219,120]
[399564357,1766487630169,-570.04,0.00048219,120]
[399564358,1766487630222,-612.78,0.00048219,120]
[399564359,1766487630277,-500.0,0.00048219,120]
[399564360,1766487630330,-1932.35,0.00048219,120]
[399564361,1766487630379,-1255.16,0.00048219,120]
[399564362,1766487630429,-1678.76,0.00048219,120]
[399564363,1766487630479,-1569.44,0.00048219,120]
[399564364,1766487630527,-1870.13,0.00048219,120]
[399564365,1766487630574,-500.0,0.00048219,120]
[399564366,1766487630620,-315.20705299,0.00048219,120]
[399564367,1766487630670,-500.0,0.00048219,120]
[399564368,1766487630716,-2182.76,0.00048219,120]
[399564369,1766487630777,-1062.94,0.00048219,120]
[399564370,1766487630827,-500.0,0.00048219,120]
[399564371,1766487630875,-500.0,0.00048219,120]
[399564372,1766487630924,-503.44,0.00048219,120]
[399564373,1766487630972,-595.91,0.00048219,120]
[399564374,1766487631022,-811.74,0.00048219,120]
[399564375,1766487631073,-650.99,0.00048219,120]
[399564376,1766487631122,-500.0,0.00048219,120]
[399564377,1766487631171,-1388.3,0.00048219,120]
[399564378,1766487631231,-500.0,0.00048219,120]
[399564379,1766487631289,-1432.96,0.00048219,120]
[399564380,1766487631344,-689.37,0.00048219,120]
[399564381,1766487631398,-500.0,0.00048219,120]
[399564382,1766487631450,-1562.05,0.00048219,120]
[399564383,1766487631499,-1196.29,0.00048219,120]
[399564384,1766487631553,-1708.74,0.00048219,120]
[399564385,1766487631605,-500.0,0.00048219,120]
[399564386,1766487631657,-1298.55,0.00048219,120]
[399564387,1766487631709,-1689.23,0.00048219,120]
[399564388,1766487631764,-1005.64,0.00048219,120]
[399564389,1766487631817,-10397.11,0.00048219,120]
[399564390,1766487631869,-765.9,0.00048219,120]
[399564391,1766487631921,-1894.6922316,0.0004825,120]
[399564392,1766487631970,-176.0,0.000483,120]
[399564393,1766487632021,-917.06,0.00048493,120]
[399564394,1766487632073,-500.0,0.00048493,120]
[399564395,1766487632125,-1369.07,0.00048493,120]
[399564396,1766487632179,-500.0,0.00048493,120]
[399564397,1766487632242,-500.0,0.00048493,120]
[399564398,1766487632301,-756.38,0.00048493,120]
[399564399,1766487632513,-500.0,0.00048493,120]
[399564400,1766487632564,-500.0,0.00048493,120]
[399564401,1766487632615,-1039.08,0.00048493,120]
[399564402,1766487632666,-2118.86,0.00048493,120]
[399564403,1766487632717,-2017.38,0.00048493,120]
[399564404,1766487632766,-500.0,0.00048493,120]
[399564405,1766487632813,-1042.93,0.00048493,120]
[399564406,1766487632860,-500.0,0.00048493,120]
[399564407,1766487632906,-500.0,0.00048493,120]
[399564408,1766487632954,-186.50002465,0.00048493,120]
[399564409,1766487633002,-426.30988617,0.00048493,120]
[399564410,1766487633052,-500.0,0.00048493,120]
[399564411,1766487633101,-500.0,0.00048493,120]
[399564412,1766487633152,-1059.91,0.00048493,120]
[399564413,1766487633207,-582.18,0.00048493,120]
[399564414,1766487633265,-514.4,0.00048493,120]
[399564415,1766487633322,-500.0,0.00048493,120]
[399564416,1766487633381,-500.0,0.00048493,120]
[399564417,1766487633436,-491.43834478,0.00048493,120]
[399564418,1766487633490,-500.0,0.00048493,120]
[399564419,1766487633542,-500.0,0.00048493,120]
[399564420,1766487633594,-1956.07,0.00048493,120]
[399564421,1766487633642,-2752.43,0.00048493,120]
[399564422,1766487633692,-1842.03,0.00048493,120]
[399564423,1766487633741,-500.0,0.00048493,120]
[399564424,1766487633787,-500.0,0.00048493,120]
[399564425,1766487633838,-586.34,0.00048493,120]
[399564426,1766487633886,-500.0,0.00048493,120]
[399564427,1766487633932,-500.0,0.00048493,120]
[399564428,1766487633978,-500.0,0.00048493,120]
[399564429,1766487634026,-697.63,0.00048493,120]
[399564430,1766487634076,-500.0,0.00048493,120]
[399564431,1766487634129,-500.0,0.00048493,120]
[399564432,1766487634182,-982.85,0.00048493,120]
[399564433,1766487634243,-500.0,0.00048493,120]
[399564434,1766487634312,-500.0,0.00048493,120]
[399564435,1766487634368,-715.76,0.00048493,120]
[399564436,1766487634423,-500.0,0.00048493,120]
[399564437,1766487634478,-1723.75,0.00048493,120]
[399564438,1766487634532,-524.92,0.00048493,120]
[399564439,1766487634586,-906.89,0.00048493,60]
[399564440,1766487634640,-545.88,0.00048493,120]
[399564441,1766487634692,-500.0,0.00048493,120]
[399564442,1766487634745,-1273.67,0.00048493,120]
[399564443,1766487634796,-500.0,0.00048493,120]
[399564444,1766487634846,-500.0,0.00048493,120]
[399564445,1766487634895,-616.17,0.00048493,120]
[399564446,1766487634944,-779.23,0.00048493,120]
[399564447,1766487634993,-760.79,0.00048493,120]
[399564448,1766487635043,-1543.48,0.00048493,120]
[399564449,1766487635097,-680.4,0.00048493,120]
[399564450,1766487635155,-1112.14,0.00048493,120]
[399564451,1766487635208,-705.5,0.00048493,120]
[399564452,1766487635264,-500.0,0.00048493,120]
[399564453,1766487635320,-500.0,0.00048493,120]
[399564454,1766487635373,-1242.77,0.00048493,120]
[399564455,1766487635427,-500.0,0.00048493,120]
[399564456,1766487635480,-500.0,0.00048493,120]
[399564457,1766487635540,-500.0,0.00048493,120]
[399564458,1766487635591,-636.03,0.00048493,120]
[399564459,1766487635641,-1402.13,0.00048493,120]
[399564460,1766487635689,-241.1783534,0.00048493,120]
[399564461,1766487635740,-1997.32,0.00048493,120]
[399564462,1766487635789,-1364.75,0.00048493,60]
[399564463,1766487635837,-766.62,0.00048493,120]
[399564464,1766487635886,-839.95,0.00048493,120]
[399564465,1766487635933,-500.0,0.00048493,120]
[399564466,1766487635988,-522.41,0.00048493,120]
[399564467,1766487636041,-500.0,0.00048493,120]
[399564468,1766487636094,-500.0,0.00048493,120]
[399564469,1766487636147,-642.74,0.00048493,120]
[399564470,1766487636200,-541.85107464,0.00048493,120]
[399564471,1766487636257,-500.0,0.00048493,120]
[399564472,1766487636313,-1016.98,0.00048493,120]
[399564473,1766487636366,-566.15,0.00048493,120]
[399564474,1766487636423,-567.85,0.00048493,120]
[399564475,1766487636479,-1710.74,0.00048493,120]
[399564476,1766487636531,-1210.55,0.00048493,120]
[399564477,1766487636581,-500.0,0.00048493,120]
[399564478,1766487636630,-1312.95,0.00048493,120]
[399564479,1766487636680,-1224.52,0.00048493,120]
[399564480,1766487636731,-1696.75,0.00048493,120]
[399564481,1766487636781,-612.83331663,0.00048493,120]
[399564482,1766487636835,-557.62,0.00048493,120]
[399564483,1766487636888,-526.92,0.00048493,120]
[399564484,1766487636940,-1297.54,0.00048493,120]
[399564485,1766487636990,-555.83,0.00048493,120]
[399564486,1766487637038,-604.78,0.00048493,120]
[399564487,1766487637090,-873.07,0.00048493,120]
[399564488,1766487637139,-2639.11,0.00048493,120]
[399564489,1766487637194,-600.1,0.00048493,120]
[399564490,1766487637249,-500.0,0.00048493,120]
[399564491,1766487637310,-622.5,0.00048493,120]
[399564492,1766487637364,-198.84766399,0.00048493,120]
[399564493,1766487637416,-500.0,0.00048493,120]
[399564494,1766487637704,-567.72,0.00048493,120]
[399564495,1766487637759,-2830.44,0.00048493,120]
[399564496,1766487637812,-581.33533188,0.00048493,120]
[399564497,1766487637864,-711.79,0.00048493,120]
[399564498,1766487637914,-592.25,0.00048493,120]
[399564499,1766487637963,-500.0,0.00048493,120]
[399564500,1766487638015,-619.91,0.00048493,120]
[399564501,1766487638068,-500.0,0.00048493,120]
[399564502,1766487638123,-500.0,0.00048493,60]
[399564503,1766487638191,-865.33,0.00048493,120]
[399564504,1766487638255,-580.69,0.00048493,120]
[399564505,1766487638314,-365.89960534,0.00048493,120]
[399564506,1766487638367,-865.61,0.00048493,120]
[399564507,1766487638418,-500.0,0.00048493,120]
[399564508,1766487638469,-1432.6,0.00048493,120]
[399564509,1766487638518,-500.0,0.00048493,120]
[399564510,1766487638567,-893.55,0.00048493,120]
[399564511,1766487638617,-500.0,0.00048493,120]
[399564512,1766487638665,-1688.71,0.00048493,120]
[399564513,1766487638713,-905.29,0.00048493,120]
[399564514,1766487638759,-632.22,0.00048493,120]
[399564515,1766487638806,-592.93,0.00048493,120]
[399564516,1766487638853,-519.34,0.00048493,120]
[399564517,1766487638900,-1835.93,0.00048493,120]
[399564518,1766487638954,-697.2,0.00048493,120]
[399564519,1766487639008,-878.66,0.00048493,120]
[399564520,1766487639058,-500.0,0.00048493,120]
[399564521,1766487639110,-913.04,0.00048493,120]
[399564522,1766487639162,-751.1,0.00048493,120]
[399564523,1766487639227,-500.0,0.00048493,120]
[399564524,1766487639284,-1075.62,0.00048493,60]
[399564525,1766487639340,-500.0,0.00048493,120]
[399564526,1766487639402,-1328.41,0.00048493,120]
[399564527,1766487639450,-500.0,0.00048493,120]
[399564528,1766487639498,-500.0,0.00048493,120]
[399564529,1766487639545,-599.0,0.00048493,120]
[399564530,1766487639592,-886.86,0.00048493,120]
[399564531,1766487639636,-500.0,0.00048493,120]
[399564532,1766487639683,-560.74,0.00048493,120]
[399564533,1766487639735,-1433.05,0.00048493,120]
[399564534,1766487639782,-500.0,0.00048493,120]
[399564535,1766487639829,-2265.89,0.00048493,120]
[399564536,1766487639874,-2082.47,0.00048493,120]
[399564537,1766487639920,-1141.51,0.00048493,120]
[399564538,1766487639966,-1850.23,0.00048493,120]
[399564539,1766487640011,-1211.32,0.00048493,120]
[399564540,1766487640057,-1291.8,0.00048493,120]
[399564541,1766487640104,-819.42,0.00048493,120]
[399564542,1766487640149,-2579.35,0.00048493,120]